bitfinex/quotes_BTCUSD_20250110
["timestamp","ask_amount","ask_price","bid_price","bid_amount"]
[1736521758361,0.214651,93175.0,93158.0,0.214689]
[1736521758562,0.3025794,93170.0,93157.0,0.01282018]
[1736521758924,0.00080322,93169.0,93151.0,8.53e-05]
[1736521759046,0.214693,93157.0,93151.0,8.53e-05]
[1736521759248,0.214684,93160.0,93151.0,8.53e-05]
[1736521759457,0.214665,93168.0,93152.0,0.10429976]
[1736521759659,0.429308,93174.0,93152.0,0.1171314]
[1736521759872,0.214649,93175.0,93153.0,0.00107342]
[1736521760093,0.00080322,93173.0,93152.0,0.01283164]
[1736521760299,0.214659,93171.0,93154.0,0.01282706]
[1736521760499,0.214698,93154.0,93151.0,8.53e-05]
[1736521760719,0.429396,93154.0,93151.0,8.53e-05]
[1736521760929,0.10429976,93153.0,93151.0,8.53e-05]
[1736521761133,0.214702,93152.0,93151.0,8.53e-05]
[1736521761303,0.34651501,93152.0,93151.0,8.53e-05]
[1736521761528,0.31900176,93152.0,93151.0,8.53e-05]
[1736521761783,0.32286164,93152.0,93151.0,8.53e-05]
[1736521761995,0.314739,93136.0,93135.0,3e-07]
[1736521762144,0.214813,93104.0,93100.0,0.000104]
[1736521762344,0.31903876,93136.0,93103.0,0.11839056]
[1736521762345,0.214797,93111.0,93103.0,0.11839056]
[1736521762557,0.214776,93120.0,93104.0,0.10429976]
[1736521762751,0.11510071,93136.0,93104.0,0.10429976]
[1736521762962,0.214771,93123.0,93104.0,0.10429976]
[1736521763157,0.214761,93127.0,93104.0,0.10429976]
[1736521763372,0.01144,93126.0,93112.0,0.214793]
[1736521763588,0.01144,93127.0,93104.0,0.10429976]
[1736521763793,0.214727,93142.0,93105.0,0.0010739]
[1736521763998,0.13914113,93151.0,93107.0,0.0816]
[1736521763999,0.09134113,93151.0,93107.0,0.0816]
[1736521764198,0.01064113,93151.0,93127.0,0.214758]
[1736521764439,0.429411,93151.0,93128.0,0.10429976]
[1736521764642,0.01144,93151.0,93129.0,0.214755]
[1736521764838,0.214695,93155.0,93136.0,0.214738]
[1736521765057,0.01072265,93156.0,93130.0,0.11718186]
[1736521765058,0.01144,93154.0,93130.0,0.11718186]
[1736521765270,0.01144,93154.0,93137.0,0.01286604]
[1736521765271,0.3025794,93150.0,93137.0,0.01286604]
[1736521765496,0.3025794,93140.0,93113.0,8.53e-05]
[1736521765706,0.31334508,93160.0,93114.0,0.10429976]
[1736521765906,0.214729,93141.0,93122.0,0.214771]
[1736521766142,0.21473,93140.0,93123.0,0.10429976]
[1736521766356,0.10429976,93159.0,93123.0,0.10429976]
[1736521766357,0.01144,93157.0,93124.0,0.00107375]
[1736521766566,0.0823,93184.0,93126.0,0.10429976]
[1736521766775,0.01084188,93176.0,93133.0,0.10429976]
[1736521766982,0.3025794,93180.0,93138.0,0.10429976]
[1736521767196,0.001,93141.0,93127.0,0.01343094]
[1736521767405,0.001,93141.0,93134.0,0.01341488]
[1736521767617,0.001,93141.0,93107.0,0.214806]
[1736521767618,0.214762,93126.0,93107.0,0.214806]
[1736521767829,0.001,93141.0,93135.0,0.01182659]
[1736521768037,0.21473,93140.0,93135.0,0.01182659]
[1736521768249,0.001,93141.0,93135.0,0.10429976]
[1736521768462,0.01144,93160.0,93136.0,0.10429976]
[1736521768675,0.214708,93150.0,93136.0,0.11744572]
[1736521768887,0.214708,93150.0,93136.0,0.01314596]
[1736521768888,0.21472,93145.0,93136.0,0.01314596]
[1736521769306,0.42944,93145.0,93125.0,0.214764]
[1736521769514,0.214742,93135.0,93126.0,0.10429976]
[1736521769689,0.214718,93146.0,93126.0,0.11746866]
[1736521769927,0.214718,93145.0,93135.0,0.003]
[1736521770146,0.214691,93158.0,93137.0,0.214737]
[1736521770359,0.214717,93146.0,93113.0,0.1481853]
[1736521770573,0.01069483,93166.0,93113.0,0.1481853]
[1736521770574,0.214683,93161.0,93136.0,0.01314596]
[1736521770780,0.10429976,93165.0,93138.0,0.01314137]
[1736521771002,0.214739,93137.0,93113.0,0.0481853]
[1736521771229,0.01144,93164.0,93113.0,0.0481853]
[1736521771230,0.3025794,93130.0,93113.0,8.53e-05]
[1736521771451,0.214786,93116.0,93113.0,8.53e-05]
[1736521771707,0.214787,93116.0,93113.0,8.53e-05]
[1736521771914,0.214781,93118.0,93113.0,8.53e-05]
[1736521772346,0.214785,93116.0,93113.0,8.53e-05]
[1736521772549,0.42957,93116.0,93113.0,8.53e-05]
[1736521773340,0.21479,93114.0,93113.0,8.53e-05]
[1736521773636,0.31908976,93114.0,93113.0,8.53e-05]
[1736521773868,0.21479,93114.0,93113.0,8.53e-05]
[1736521774076,0.214781,93118.0,93113.0,8.53e-05]
[1736521774481,0.429562,93118.0,93113.0,8.53e-05]
[1736521774703,0.214786,93116.0,93113.0,8.53e-05]
[1736521774902,0.21479,93114.0,93113.0,8.53e-05]
[1736521775109,0.214785,93117.0,93113.0,8.53e-05]
[1736521775325,0.214759,93128.0,93114.0,0.10429976]
[1736521775559,0.01148,93144.0,93114.0,0.10429976]
[1736521775560,0.01094353,93142.0,93114.0,0.10429976]
[1736521775753,0.214748,93133.0,93115.0,0.01319414]
[1736521775936,0.214726,93142.0,93121.0,0.214774]
[1736521776145,0.01056032,93150.0,93134.0,0.214742]
[1736521776347,0.01056032,93150.0,93122.0,0.10537353]
[1736521776348,0.01057535,93159.0,93122.0,0.01317807]
[1736521776552,0.214732,93140.0,93135.0,0.01335659]
[1736521776758,0.214732,93139.0,93117.0,0.214781]
[1736521777007,0.214737,93138.0,93136.0,0.01335483]
[1736521777213,0.01083941,93158.0,93118.0,0.1053736]
[1736521777412,0.214737,93138.0,93137.0,0.01335253]
[1736521777617,0.3025794,93150.0,93118.0,0.10429976]
[1736521777834,0.40687916,93150.0,93135.0,0.001]
[1736521778039,0.214731,93140.0,93135.0,0.001]
[1736521778277,0.214735,93138.0,93118.0,0.31907876]
[1736521778482,0.214723,93143.0,93137.0,0.001]
[1736521778683,0.01148,93152.0,93137.0,0.001]
[1736521778889,0.214667,93168.0,93137.0,0.001]
[1736521779092,0.3025794,93170.0,93137.0,0.001]
[1736521779093,0.2147,93154.0,93137.0,0.001]
[1736521779301,0.3025794,93150.0,93138.0,0.01335024]
[1736521779501,0.214731,93140.0,93137.0,0.001]
[1736521779713,0.214718,93146.0,93137.0,0.001]
[1736521779909,0.214702,93152.0,93131.0,0.21475]
[1736521780120,0.214697,93155.0,93132.0,0.10537339]
[1736521780327,0.214708,93150.0,93132.0,0.11766376]
[1736521780528,0.3025794,93150.0,93132.0,0.013364]
[1736521780744,0.429477,93137.0,93132.0,0.013364]
[1736521780872,0.10429976,93149.0,93113.0,8.53e-05]
[1736521781081,0.3025794,93130.0,93113.0,8.53e-05]
[1736521781496,0.214769,93123.0,93113.0,8.53e-05]
[1736521782138,0.3025794,93140.0,93113.0,8.53e-05]
[1736521782139,0.214783,93118.0,93113.0,8.53e-05]
[1736521782335,0.214785,93116.0,93113.0,8.53e-05]
[1736521782567,0.53386976,93116.0,93113.0,8.53e-05]
[1736521782935,0.21479,93114.0,93113.0,8.53e-05]
[1736521783138,0.31908976,93114.0,93113.0,8.53e-05]
[1736521783892,0.31908976,93114.0,93113.0,3e-07]
[1736521784093,0.214813,93104.0,93103.0,0.0140908]
[1736521784308,0.214868,93080.0,93079.0,8.54e-05]
[1736521784515,0.31916776,93080.0,93079.0,8.54e-05]
[1736521784722,0.214868,93080.0,93079.0,8.54e-05]
[1736521785681,0.21486,93084.0,93079.0,8.54e-05]
[1736521786134,0.214864,93082.0,93079.0,4e-07]
[1736521786370,0.63402776,93082.0,93079.0,4e-07]
[1736521786575,0.02129066,93080.0,93079.0,4e-07]
[1736521786787,0.10429976,93080.0,93079.0,4e-07]
[1736521786991,0.11577976,93080.0,93079.0,4e-07]
[1736521787193,0.10429976,93080.0,93079.0,4e-07]
[1736521788631,0.10729976,93080.0,93079.0,4e-07]
[1736521788845,0.003,93080.0,93079.0,4e-07]
[1736521789051,0.214808,93107.0,93079.0,4e-07]
[1736521789052,0.214838,93094.0,93079.0,4e-07]
[1736521789462,0.214818,93102.0,93079.0,0.10430016]
[1736521789463,0.001,93080.0,93079.0,0.10430016]
[1736521789893,0.02177277,93134.0,93079.0,0.21835126]
[1736521790104,0.01148,93137.0,93087.0,1.5]
[1736521790105,0.10429976,93133.0,93087.0,1.5]
[1736521790317,0.214727,93142.0,93091.0,0.15]
[1736521790539,0.214748,93133.0,93116.0,0.214784]
[1736521790755,0.214748,93133.0,93113.0,0.214792]
[1736521790973,0.214748,93133.0,93114.0,0.10429976]
[1736521791187,0.22829692,93152.0,93079.0,0.01397723]
[1736521791188,0.214843,93091.0,93079.0,0.01397723]
[1736521791396,0.01148,93099.0,93079.0,0.01397723]
[1736521791609,0.214848,93089.0,93079.0,0.01270919]
[1736521791821,0.214865,93082.0,93079.0,4e-07]
[1736521792088,0.214868,93080.0,93079.0,4e-07]
[1736521793124,0.214868,93080.0,93079.0,4.04e-05]
[1736521795011,0.31916776,93080.0,93079.0,4.04e-05]
[1736521795862,0.214868,93080.0,93079.0,4.04e-05]
[1736521796632,0.31916776,93080.0,93079.0,4.04e-05]
[1736521797636,0.214868,93080.0,93079.0,4.04e-05]
[1736521797818,0.002,93080.0,93079.0,4.04e-05]
[1736521798205,0.42973,93082.0,93079.0,4.04e-05]
[1736521798412,0.214865,93082.0,93079.0,4.04e-05]
[1736521798607,0.003,93080.0,93079.0,4.04e-05]
[1736521798835,0.10729976,93080.0,93079.0,4.04e-05]
[1736521799039,0.15800224,93080.0,93079.0,4.04e-05]
[1736521799253,0.10429976,93080.0,93079.0,4.04e-05]
[1736521799756,0.1263611,93080.0,93079.0,4.04e-05]
[1736521800087,0.10429976,93080.0,93079.0,4.04e-05]
[1736521800530,0.0815,93078.0,93075.0,7e-07]
[1736521800761,0.214894,93069.0,93046.0,0.10089308]
[1736521800950,0.10429976,93076.0,93052.0,0.214932]
[1736521801153,0.002,93080.0,93064.0,0.01328924]
[1736521801323,0.002,93080.0,93065.0,0.10537427]
[1736521801525,0.002,93080.0,93077.0,0.214875]
[1736521801706,0.214831,93097.0,93079.0,0.214871]
[1736521801901,0.001,93069.0,93064.0,0.01328924]
[1736521802123,0.001,93069.0,93066.0,0.429799]
[1736521802327,0.3025794,93110.0,93065.0,0.10429976]
[1736521802328,0.2148,93110.0,93074.0,0.1]
[1736521802574,0.03316792,93147.0,93091.0,0.078]
[1736521802723,0.214743,93135.0,93114.0,0.214789]
[1736521802940,0.0822,93152.0,93091.0,0.078]
[1736521802941,0.214703,93152.0,93115.0,0.31908676]
[1736521803143,0.0814,93170.0,93117.0,0.214783]
[1736521803351,0.214665,93169.0,93148.0,0.214711]
[1736521803558,0.214676,93164.0,93130.0,0.3025794]
[1736521803760,0.214654,93173.0,93137.0,0.1]
[1736521804138,0.000171,93174.0,93165.0,0.21467]
[1736521804338,0.000171,93174.0,93169.0,0.214663]
[1736521804461,0.000171,93174.0,93166.0,0.10429976]
[1736521804676,0.000171,93174.0,93170.0,0.00105817]
[1736521804879,0.000171,93174.0,93135.0,0.214742]
[1736521805065,0.000171,93174.0,93134.0,0.1]
[1736521805066,0.214656,93173.0,93171.0,0.01348166]
[1736521805437,0.000171,93174.0,93155.0,0.00107342]
[1736521805635,0.000171,93174.0,93157.0,0.214691]
[1736521805843,0.000171,93174.0,93170.0,0.001]
[1736521806164,0.000171,93174.0,93171.0,0.33138455]
[1736521806380,0.000171,93174.0,93173.0,0.214654]
[1736521806581,0.000171,93174.0,93173.0,0.33137496]
[1736521806777,0.000171,93174.0,93173.0,0.11672096]
[1736521807272,0.000171,93174.0,93173.0,0.0124212]
[1736521807478,0.000171,93174.0,93171.0,0.429318]
[1736521807681,0.000171,93174.0,93173.0,0.0124212]
[1736521807888,0.214823,93174.0,93172.0,0.00672016]
[1736521808151,0.214823,93174.0,93173.0,0.01147065]
[1736521808344,0.000171,93174.0,93142.0,0.00107349]
[1736521808544,0.000171,93174.0,93173.0,0.003]
[1736521808755,0.000171,93174.0,93173.0,0.10729976]
[1736521808933,0.000171,93174.0,93173.0,0.11577041]
[1736521809295,0.001171,93174.0,93173.0,0.01147065]
[1736521809751,0.10447076,93174.0,93134.0,0.214743]
[1736521810028,0.10447076,93174.0,93111.0,0.214796]
[1736521810029,0.3025794,93150.0,93122.0,0.21477]
[1736521810236,0.214723,93143.0,93135.0,0.00113884]
[1736521810451,0.214723,93143.0,93123.0,0.10429976]
[1736521810649,0.3025794,93150.0,93111.0,0.293197]
[1736521810650,0.3025794,93150.0,93136.0,0.00113653]
[1736521810898,0.214737,93138.0,93117.0,0.214782]
[1736521811111,0.214737,93138.0,93111.0,0.293197]
[1736521811112,0.3025794,93140.0,93111.0,0.293197]
[1736521811325,0.214716,93146.0,93118.0,0.00117804]
[1736521811538,0.3025794,93150.0,93112.0,0.10429976]
[1736521811539,0.10429976,93145.0,93112.0,0.10429976]
[1736521811749,0.3025794,93130.0,93119.0,0.00117574]
[1736521811961,0.3025794,93121.0,93088.0,0.21485]
[1736521812189,0.21476,93128.0,93089.0,0.10537388]
[1736521812400,0.3025794,93150.0,93123.0,0.214769]
[1736521812614,0.001,93146.0,93125.0,0.214765]
[1736521812819,0.001,93146.0,93130.0,0.214752]
[1736521813027,0.214708,93150.0,93131.0,0.10429976]
[1736521813476,0.5172634,93160.0,93131.0,0.10429976]
[1736521813477,0.21474,93136.0,93131.0,0.00114806]
[1736521813700,0.214752,93131.0,93097.0,0.1]
[1736521813913,0.214752,93131.0,93093.0,0.0817]
[1736521813914,0.3025794,93170.0,93106.0,0.10429976]
[1736521814125,0.10429976,93169.0,93127.0,0.214758]
[1736521814274,0.10429976,93169.0,93128.0,0.10429976]
[1736521814477,0.3025794,93160.0,93129.0,0.214755]
[1736521814719,0.21468,93162.0,93131.0,0.214751]
[1736521814892,0.21468,93162.0,93133.0,0.214746]
[1736521815100,0.214677,93163.0,93140.0,0.214729]
[1736521815303,0.214668,93168.0,93141.0,0.10537327]
[1736521815663,0.214654,93173.0,93152.0,0.214701]
[1736521815873,0.214654,93173.0,93142.0,0.0011227]
[1736521815874,0.3025794,93170.0,93142.0,0.0011227]
[1736521816077,0.10429976,93169.0,93153.0,0.00109734]
[1736521816295,0.10429976,93169.0,93138.0,0.214735]
[1736521816500,0.10429976,93169.0,93139.0,0.10429976]
[1736521816711,0.3025794,93150.0,93141.0,0.001]
[1736521816912,0.214724,93143.0,93141.0,0.001]
[1736521817292,0.10429976,93142.0,93092.0,0.214839]
[1736521817551,0.3025794,93130.0,93080.0,0.0761]
[1736521817754,0.01172,93129.0,93092.0,0.10429976]
[1736521817867,0.01172,93129.0,93086.0,0.214854]
[1736521817868,0.3025794,93120.0,93086.0,0.214854]
[1736521818065,0.10429976,93119.0,93087.0,0.10429976]
[1736521818273,0.3025794,93110.0,93081.0,0.214865]
[1736521818476,0.214817,93103.0,93082.0,0.214864]
[1736521818677,0.10429976,93119.0,93083.0,0.00107424]
[1736521818889,0.10429976,93119.0,93071.0,0.00107412]
[1736521819203,0.3025794,93110.0,93072.0,0.10429976]
[1736521819399,0.10429976,93109.0,93073.0,0.214885]
[1736521819627,0.214838,93094.0,93075.0,0.21488]
[1736521819827,0.214838,93094.0,93074.0,0.10429976]
[1736521819828,0.10429976,93109.0,93082.0,0.002]
[1736521820045,0.214842,93092.0,93082.0,0.002]
[1736521820366,0.214783,93118.0,93070.0,0.214891]
[1736521820367,0.214732,93139.0,93083.0,0.10429976]
[1736521820617,0.3025794,93140.0,93093.0,0.214837]
[1736521820618,0.002,93109.0,93093.0,0.214837]
[1736521820827,0.002,93109.0,93094.0,0.10429976]
[1736521821033,0.002,93109.0,93085.0,0.214857]
[1736521821217,0.002,93109.0,93096.0,0.214832]
[1736521821425,0.002,93109.0,93108.0,0.214804]
[1736521821628,0.002,93109.0,93108.0,1.81910376]
[1736521821955,0.002,93109.0,93108.0,1.82030487]
[1736521822154,0.214739,93136.0,93108.0,1.82030487]
[1736521822155,0.214751,93131.0,93109.0,0.429604]
[1736521822420,0.214778,93119.0,93110.0,0.0011965]
[1736521822670,0.10429976,93118.0,93082.0,0.001]
[1736521822987,0.214817,93103.0,93083.0,0.10429976]
[1736521823196,0.3025794,93100.0,93084.0,0.00125649]
[1736521823395,0.3025794,93100.0,93054.0,0.00107442]
[1736521823396,0.11601976,93099.0,93054.0,0.00107442]
[1736521823594,0.3025794,93080.0,93064.0,0.0109877]
[1736521823821,0.214901,93066.0,93036.0,0.214969]
[1736521824080,0.214901,93066.0,93026.0,0.1242]
[1736521824248,0.214901,93066.0,93030.0,0.214982]
[1736521824249,0.214905,93064.0,93030.0,0.214982]
[1736521824404,0.31920476,93064.0,93026.0,0.1242]
[1736521824614,0.31920476,93064.0,93026.0,0.0763]
[1736521824816,0.39005478,93064.0,93026.0,0.0763]
[1736521825028,0.31920476,93064.0,93063.0,0.1185]
[1736521825630,0.31920476,93064.0,93027.0,0.214991]
[1736521825631,0.21377575,93053.0,93032.0,0.214979]
[1736521825968,0.215901,93066.0,93063.0,0.01099231]
[1736521826178,0.001,93066.0,93038.0,0.00107468]
[1736521826380,0.21489,93071.0,93031.0,0.2150652]
[1736521826381,0.214903,93065.0,93031.0,0.2150652]
[1736521826585,0.214888,93072.0,93047.0,0.11402385]
[1736521826995,0.002,93064.0,93048.0,0.01121142]
[1736521827204,0.01172,93093.0,93048.0,0.1165858]
[1736521827489,0.10429976,93092.0,93048.0,0.1165858]
[1736521827782,0.214861,93084.0,93048.0,0.1165858]
[1736521828000,0.3025794,93080.0,93048.0,0.14741142]
[1736521828216,0.3025794,93060.0,93048.0,0.14741142]
[1736521828433,0.364919,93058.0,93048.0,0.14741142]
[1736521828649,0.21494,93050.0,93048.0,0.14741142]
[1736521828857,0.15728616,93049.0,93048.0,0.114706]
[1736521829068,0.214942,93048.0,93041.0,8.54e-05]
[1736521829274,0.10429976,93047.0,93041.0,8.54e-05]
[1736521829748,0.1,93042.0,93041.0,8.54e-05]
[1736521829961,0.25429976,93042.0,93041.0,8.54e-05]
[1736521830169,0.45771914,93042.0,93041.0,8.54e-05]
[1736521830383,0.35429976,93042.0,93041.0,8.54e-05]
[1736521830790,0.26601976,93042.0,93041.0,8.54e-05]
[1736521830993,0.21473057,93010.0,92985.0,8.52e-05]
[1736521831210,0.215051,93001.0,92985.0,8.52e-05]
[1736521831415,0.3056101,92970.0,92941.0,0.21519]
[1736521831630,0.21415597,92964.0,92942.0,0.31948576]
[1736521831832,0.215148,92959.0,92942.0,0.31948576]
[1736521832087,0.215125,92969.0,92948.0,0.215172]
[1736521832088,0.03105654,92967.0,92948.0,0.215172]
[1736521832328,0.215079,92989.0,92948.0,0.10429976]
[1736521832573,0.215101,92980.0,92949.0,0.2162458]
[1736521832776,0.215101,92980.0,92961.0,0.215143]
[1736521832777,0.5207111,92980.0,92961.0,0.215143]
[1736521832983,0.215081,92988.0,92968.0,0.215127]
[1736521833291,0.215117,92973.0,92935.0,0.1]
[1736521833585,0.3056101,92980.0,92956.0,0.215154]
[1736521833586,0.215108,92977.0,92956.0,0.215154]
[1736521833803,0.215108,92977.0,92957.0,0.215153]
[1736521834025,0.215108,92977.0,92941.0,0.10429976]
[1736521834026,0.3056101,92970.0,92943.0,0.215183]
[1736521834241,0.3056101,92960.0,92922.0,0.0754]
[1736521834442,0.215127,92968.0,92938.0,0.10537568]
[1736521834647,0.215127,92968.0,92954.0,0.215159]
[1736521834860,0.01164,92976.0,92959.0,0.215146]
[1736521835066,0.002,92988.0,92938.0,0.11220765]
[1736521835067,0.215083,92987.0,92939.0,0.00790553]
[1736521835175,0.10429976,92986.0,92960.0,0.00785591]
[1736521835386,0.215101,92980.0,92962.0,0.215141]
[1736521835779,0.215111,92976.0,92963.0,0.00784882]
[1736521836132,0.215111,92976.0,92953.0,0.21516]
[1736521836133,0.215111,92976.0,92962.0,0.215139]
[1736521836346,0.215104,92979.0,92962.0,0.215139]
[1736521836540,0.215131,92967.0,92963.0,0.00784882]
[1736521836950,0.10429976,92966.0,92916.0,0.0140908]
[1736521837110,0.215178,92947.0,92928.0,0.215219]
[1736521837312,0.3056101,92940.0,92923.0,0.00794335]
[1736521837509,0.10429976,92946.0,92929.0,0.00792916]
[1736521837510,0.226828,92942.0,92929.0,0.00792916]
[1736521837761,0.215177,92947.0,92925.0,0.215226]
[1736521838146,0.215191,92941.0,92921.0,0.215236]
[1736521838329,0.3056101,92960.0,92927.0,0.215222]
[1736521838330,0.01164,92951.0,92927.0,0.215222]
[1736521838504,0.215161,92954.0,92916.0,0.0140908]
[1736521838687,0.01164,92954.0,92942.0,0.215186]
[1736521838894,0.215148,92960.0,92943.0,0.215184]
[1736521839102,0.215125,92969.0,92944.0,0.215183]
[1736521839321,0.3056101,92970.0,92944.0,0.00789371]
[1736521839322,0.215139,92963.0,92944.0,0.00789371]
[1736521839544,0.01164,92968.0,92944.0,0.00789371]
[1736521839748,0.10429976,92967.0,92944.0,0.00789371]
[1736521839978,0.215172,92949.0,92937.0,8.47e-05]
[1736521840506,0.430372,92943.0,92938.0,0.00790789]
[1736521840714,0.215186,92943.0,92937.0,8.47e-05]
[1736521840921,0.215163,92953.0,92937.0,8.47e-05]
[1736521841126,0.215174,92948.0,92937.0,8.47e-05]
[1736521841749,0.10429976,92947.0,92937.0,8.47e-05]
[1736521841964,0.430385,92940.0,92937.0,8.47e-05]
[1736521842176,0.215189,92942.0,92937.0,8.47e-05]
[1736521842386,0.215166,92952.0,92937.0,0.0010847]
[1736521842601,0.215155,92956.0,92937.0,0.0010847]
[1736521842806,0.215167,92951.0,92937.0,0.0010847]
[1736521843020,0.215167,92951.0,92938.0,0.00797987]
[1736521843251,0.215194,92940.0,92937.0,8.47e-05]
[1736521843470,0.215197,92938.0,92937.0,8.47e-05]
[1736521844346,0.31949676,92938.0,92937.0,8.47e-05]
[1736521844770,0.31819676,92938.0,92937.0,8.47e-05]
[1736521845059,0.001,92940.0,92937.0,8.47e-05]
[1736521845533,0.01164,92954.0,92937.0,8.47e-05]
[1736521845534,0.215188,92942.0,92937.0,8.47e-05]
[1736521845735,0.215197,92938.0,92937.0,8.47e-05]
[1736521845938,0.31949676,92938.0,92937.0,8.47e-05]
[1736521846357,0.215197,92938.0,92937.0,8.47e-05]
[1736521846567,0.01164,92941.0,92937.0,8.47e-05]
[1736521846771,0.215176,92947.0,92937.0,8.47e-05]
[1736521846978,0.3056101,92950.0,92937.0,8.47e-05]
[1736521847182,0.215175,92948.0,92937.0,8.47e-05]
[1736521847424,0.10429976,92949.0,92937.0,8.47e-05]
[1736521847618,0.430376,92942.0,92938.0,0.00644289]
[1736521847822,0.215192,92940.0,92937.0,8.47e-05]
[1736521848027,0.215197,92938.0,92937.0,8.47e-05]
[1736521848233,0.10429976,92939.0,92937.0,8.47e-05]
[1736521848432,0.3056101,92960.0,92937.0,8.47e-05]
[1736521848638,0.01285335,92952.0,92937.0,8.47e-05]
[1736521848789,0.3056101,92970.0,92937.0,8.47e-05]
[1736521848994,0.01260442,92966.0,92937.0,8.47e-05]
[1736521849201,0.01260442,92966.0,92953.0,0.215162]
[1736521849399,0.01260442,92966.0,92941.0,0.076]
[1736521849605,0.3056101,92980.0,92954.0,0.00677175]
[1736521849805,0.215097,92982.0,92964.0,0.212135]
[1736521850014,0.0130253,92997.0,92965.0,0.10429976]
[1736521850346,0.3056101,93010.0,92966.0,0.00107555]
[1736521850561,0.10429976,93009.0,92967.0,0.10429976]
[1736521850758,0.3056101,92990.0,92967.0,0.00670663]
[1736521850964,0.3056101,92980.0,92967.0,0.00670663]
[1736521851152,0.226675,93008.0,92950.0,0.00107576]
[1736521851153,0.215072,92993.0,92950.0,0.00107576]
[1736521851373,0.10429976,92992.0,92961.0,0.215143]
[1736521851601,0.215099,92981.0,92961.0,0.215143]
[1736521851826,0.10429976,92981.0,92962.0,0.00671843]
[1736521852019,0.40990986,92980.0,92962.0,0.00671843]
[1736521852231,0.40990986,92980.0,92941.0,0.076]
[1736521852443,0.10429976,92980.0,92942.0,0.10537557]
[1736521852709,0.215119,92972.0,92963.0,0.00671607]
[1736521852905,0.10429976,92980.0,92941.0,0.076]
[1736521852906,0.215136,92965.0,92949.0,0.215169]
[1736521853143,0.3056101,92980.0,92964.0,0.00671371]
[1736521853144,0.001,92980.0,92964.0,0.00671371]
[1736521853351,0.001,92980.0,92938.0,0.1229]
[1736521853352,0.215122,92971.0,92954.0,0.215158]
[1736521853557,0.10429976,92970.0,92965.0,0.00671135]
[1736521853765,0.215128,92968.0,92944.0,0.215182]
[1736521853975,0.21514,92963.0,92938.0,0.1229]
[1736521854183,0.10429976,92962.0,92945.0,0.009858]
[1736521854434,0.10429976,92962.0,92937.0,8.47e-05]
[1736521854435,0.10429976,92962.0,92943.0,0.215183]
[1736521854620,0.215143,92961.0,92943.0,0.215183]
[1736521854844,0.215155,92956.0,92946.0,0.00901999]
[1736521855064,0.215166,92952.0,92946.0,0.00706025]
[1736521855283,0.10429976,92951.0,92937.0,8.47e-05]
[1736521855505,0.21517,92950.0,92937.0,8.47e-05]
[1736521855732,0.215157,92955.0,92937.0,8.47e-05]
[1736521855931,0.215151,92958.0,92943.0,0.215184]
[1736521856127,0.315078,92990.0,92938.0,0.215195]
[1736521856128,0.01164,92976.0,92938.0,0.00905742]
[1736521856487,0.3056101,92960.0,92938.0,0.00905742]
[1736521856719,0.21518,92946.0,92938.0,0.00905742]
[1736521856973,0.10429976,92946.0,92937.0,0.0010847]
[1736521857184,0.430388,92940.0,92937.0,8.47e-05]
[1736521857390,0.01164,92950.0,92937.0,8.47e-05]
[1736521857568,0.10429976,92939.0,92937.0,8.47e-05]
[1736521857768,0.215197,92938.0,92937.0,8.47e-05]
[1736521858412,0.31949676,92938.0,92937.0,8.47e-05]
[1736521858774,0.25,92978.0,92937.0,8.47e-05]
[1736521858984,0.215145,92961.0,92937.0,8.47e-05]
[1736521859163,0.31944476,92961.0,92938.0,0.215196]
[1736521859556,0.3056101,92980.0,92945.0,0.21518]
[1736521859557,0.215125,92969.0,92945.0,0.21518]
[1736521859737,0.01164,92967.0,92938.0,0.00905742]
[1736521859951,0.10429976,92966.0,92938.0,0.00905742]
[1736521860160,0.215146,92961.0,92939.0,0.215194]
[1736521860405,0.215151,92958.0,92938.0,0.001]
[1736521860610,0.215107,92977.0,92938.0,0.001]
[1736521860611,0.21512,92972.0,92940.0,0.11137419]
[1736521860829,0.21512,92971.0,92946.0,0.215177]
[1736521861035,0.21512,92971.0,92940.0,0.10429976]
[1736521861036,0.21512,92971.0,92941.0,0.00707207]
[1736521861270,0.10429976,92972.0,92942.0,0.10429976]
[1736521861478,0.215125,92969.0,92938.0,0.001]
[1736521861684,0.215111,92975.0,92939.0,0.10429976]
[1736521861887,0.012,92976.0,92940.0,0.0808]
[1736521862090,0.001,92966.0,92942.0,0.10429976]
[1736521862289,0.001,92966.0,92944.0,0.215183]
[1736521862518,0.012,92976.0,92958.0,0.215149]
[1736521862915,0.10429976,92975.0,92945.0,0.00695978]
[1736521863180,0.10429976,92975.0,92858.0,0.05310374]
[1736521863181,0.215146,92960.0,92959.0,0.0069267]
[1736521863393,0.215164,92953.0,92933.0,0.215206]
[1736521863609,0.21516,92954.0,92933.0,0.430414]
[1736521863833,0.10429976,92954.0,92938.0,0.00697632]
[1736521864048,0.215142,92962.0,92958.0,0.002]
[1736521864258,0.3056101,92960.0,92958.0,0.002]
[1736521864481,0.10429976,92959.0,92958.0,0.002]
[1736521864710,0.31944776,92959.0,92958.0,0.002]
[1736521865348,0.215171,92950.0,92923.0,0.21523]
[1736521865557,0.215174,92948.0,92937.0,0.0020847]
[1736521865767,0.215178,92946.0,92937.0,0.0020847]
[1736521865949,0.21516,92954.0,92937.0,0.0020847]
[1736521866215,0.21516,92954.0,92937.0,8.47e-05]
[1736521866437,0.215143,92961.0,92958.0,0.001]
[1736521866652,0.01231803,92962.0,92958.0,0.001]
[1736521866858,0.01231803,92962.0,92938.0,0.10429976]
[1736521867059,0.012,92976.0,92939.0,0.00107581]
[1736521867271,0.10429976,92976.0,92959.0,0.0069267]
[1736521867481,0.215122,92971.0,92952.0,0.215163]
[1736521867696,0.215122,92971.0,92960.0,0.00692434]
[1736521867963,0.215122,92971.0,92953.0,0.215161]
[1736521868177,0.012,92982.0,92954.0,0.10429976]
[1736521868401,0.215157,92955.0,92954.0,0.00693851]
[1736521868609,0.215157,92955.0,92937.0,0.0010847]
[1736521868610,0.215197,92938.0,92937.0,8.47e-05]
[1736521868823,0.33149676,92938.0,92937.0,8.47e-05]
[1736521869485,0.33149676,92938.0,92900.0,0.01077869]
[1736521869486,0.10429976,92938.0,92900.0,0.01077869]
[1736521869704,0.0477,92965.0,92903.0,0.00107628]
[1736521869921,0.215155,92956.0,92954.0,0.001]
[1736521870141,0.10429976,92955.0,92954.0,0.001]